Cogmind - Beta 13 @@@ ROGUE MODE // 2024.06.30 @ 00:20:36 Player: H3-RMN Result: Destroyed by G-47 Trooper with Particle Gun Performance ------------- Evolutions (0) 0 Regions Visited (3) 600 Robots Destroyed (35) 175 Value Destroyed (693) 693 Prototype IDs (3) 60 Alien Tech Used (0) 0 Bonus (0) 0 TOTAL SCORE: 1528 Bonus ------- None Cogmind --------- Core Integrity 0/250 Matter 260/300 Energy 99/100 System Corruption 0% Temperature Cool (9) Movement Walking (260) Ox2 Location -10/Subcaves Parts ------- > --- POWER (1) -------- (None) > --- PROPULSION (2) --- Aluminum Leg > --- UTILITY (2) ------ Large Storage Unit Structural Scanner > --- WEAPON (2) ------- Heavy Assault Rifle Hammer > --- INVENTORY (15) --- Aluminum Leg Transport Network Coupler Hacking Suite Grenade Launcher Grenade Launcher Peak State ------------ > --- POWER ------------ Light Ion Engine > --- PROPULSION ------- Aluminum Leg Aluminum Leg > --- UTILITY ---------- Small Storage Unit Large Storage Unit > --- WEAPON ----------- Shotgun Shotgun > --- INVENTORY -------- Light Ion Engine EM Pulse Gun Heavy Assault Rifle Heavy Assault Rifle Heavy Assault Rifle Heavy Assault Rifle Grenade Launcher Grenade Launcher [Rating: 10] Favorites ----------- Power Light Ion Engine Engine Light Ion Engine Propulsion Aluminum Leg Leg Aluminum Leg Utility Large Storage Unit Device Heat Sink Storage Large Storage Unit Protection Core Shielding Weapon Heavy Assault Rifle Energy Gun EM Pulse Gun Energy Cannon Beam Cannon Ballistic Gun Heavy Assault Rifle Launcher Grenade Launcher Impact Weapon Hammer Build | -11 -10 -10 -10 ------- Run | Yrd Mat Min Sub Slots Evolved . | . . . . Power . | . . . . Propulsion . | . . . . Utility . | . . . . Weapon . | . . . . Parts Attached 35 | 6 16 11 2 Power 4 | 1 1 2 . Engine 4 | 1 1 2 . Core . | . . . . Reactor . | . . . . Propulsion 9 | 2 4 3 . Treads . | . . . . Leg 9 | 2 4 3 . Wheel . | . . . . Hover . | . . . . Flight . | . . . . Utility 5 | 1 3 . 1 Device 2 | . 1 . 1 Storage 2 | 1 1 . . Processor . | . . . . Hackware . | . . . . Protection 1 | . 1 . . Artifact . | . . . . Weapon 17 | 2 8 6 1 Energy Gun 3 | 2 . 1 . Energy Cannon 1 | . 1 . . Ballistic Gun 9 | . 5 4 . Ballistic Cannon . | . . . . Launcher 3 | . 2 1 . Special Weapon . | . . . . Impact Weapon 1 | . . . 1 Slashing Weapon . | . . . . Piercing Weapon . | . . . . Special Melee Weapon . | . . . . Unidentified Prototypes . | . . . . Parts Lost 13 | . . 10 3 Power 3 | . . 2 1 Propulsion 4 | . . 4 . Utility 1 | . . . 1 Weapon 5 | . . 4 1 Highest Loss Streak 8 | . . 8 3 To Critical Strikes . | . . . . Average Slot Usage (%) 97 | . 98 91 80 Engine 13 | . 14 13 14 Leg 26 | . 28 21 14 Device 8 | . 11 . . Storage 14 | . 14 14 14 Protection 4 | . 1 14 14 Energy Gun 1 | . . 6 9 Energy Cannon 10 | . 11 6 . Ballistic Gun 15 | . 15 15 14 Naked Turns . | . . . . Heaviest Build 32 | 10 32 32 29 Greatest Support 20 | 20 20 20 10 Greatest Overweight (x) 2 | . 1 2 2 Average Overweight (x) . | . . 1 2 Largest Inventory Capacity 15 | 8 15 15 15 Average Capacity 14 | 7 14 15 15 Most Carried 15 | 2 15 15 7 Average Carried 11 | . 12 10 6 Final Capacity 15 | 8 15 15 15 Final Carried 15 | 2 15 7 5 Class Distribution -------------------- 100% | Mutant Dominant Class ---------------- Mutant | -10/Materials Mutant | -10/Mines Mutant | -10/Subcaves Resources | -11 -10 -10 -10 ----------- Run | Yrd Mat Min Sub Matter Collected 873 | 206 498 169 . Remotely . | . . . . Salvage Created 1245 | . 978 267 . Parts 67 | . 54 13 . Haulers Intercepted 2 | . 2 . . Recyclers Shooed 4 | . 3 1 . Parts Field Recycled . | . . . . Retrieved Matter . | . . . . Parts Self-Destructed . | . . . . Prevented . | . . . . Kills | -11 -10 -10 -10 ------- Run | Yrd Mat Min Sub Combat Hostiles Destroyed 24 | . 15 9 . Guns 10 | . 5 5 . Cannons 8 | . 7 1 . AOE 6 | . 3 3 . Classes Destroyed 10 | . 8 2 . Worker 4 | . 4 . . Tunneler 1 | . 1 . . Hauler 2 | . 2 . . Recycler 6 | . 4 2 . Operator 1 | . 1 . . Watcher 1 | . 1 . . Swarmer 6 | . 3 3 . Grunt 12 | . 12 . . Demolisher 2 | . . 2 . Assembled 4 | . . 4 . Best Kill Streak 5 | . 5 4 . Combat Bots Only 4 | . 3 4 . Max Kills in Single Turn 2 | . 2 2 . Gunslinging . | . . . . Exploded 2 | . 1 2 . Melee . | . . . . Uniques/NPCs Destroyed . | . . . . Combat | -11 -10 -10 -10 -------- Run | Yrd Mat Min Sub Hostile Shots Fired 107 | . 50 47 10 Missed 23 | . 15 6 2 Damage Taken 1740 | . 397 1238 105 Core 262 | . 54 154 54 Absorbed by Shields . | . . . . Redirected to Shielding 35 | . . 31 4 Core Remaining (%) 100 | 100 . . . Volleys Fired 93 | . 58 29 6 Largest 2 | . 2 2 2 Hottest 83 | . 83 83 63 Shots Fired 169 | . 111 51 7 Gun 108 | . 64 37 7 Cannon 53 | . 42 11 . Launcher 8 | . 5 3 . Special . | . . . . Kinetic 102 | . 64 32 6 Thermal 53 | . 42 11 . Explosive 8 | . 5 3 . Electromagnetic 6 | . . 5 1 Robot Hit Streak 9 | . 9 5 5 Robot Miss Streak 6 | . 6 3 1 Penetration Max . | . . . . Secondary Targets 2 | . . 2 . Max Gunslinging Chain 1 | . . 1 . Shots Hit Robots 107 | . 71 30 6 Core Hits 56 | . 38 18 . Critical Kills . | . . . . Critical Parts Destroyed . | . . . . Critical Strikes . | . . . . Melee Attacks . | . . . . Impact . | . . . . Slashing . | . . . . Piercing . | . . . . Sneak Attacks . | . . . . Combat Hostiles . | . . . . Follow-up Attacks . | . . . . Damage Inflicted 2258 | . 1473 697 88 Guns 1086 | . 607 391 88 Cannons 650 | . 527 123 . Explosions 522 | . 339 183 . Melee . | . . . . Ramming . | . . . . Kinetic 1028 | . 607 346 75 Thermal 650 | . 527 123 . Explosive 522 | . 339 183 . Electromagnetic 58 | . . 45 13 Impact . | . . . . Slashing . | . . . . Piercing . | . . . . Highest Corruption . | . . . . Average Corruption . | . . . . Corruption Purged . | . . . . Corruption Blocked . | . . . . Overload Shots . | . . . . Overflow Damage 15 | . 15 . . Projectiles . | . . . . Explosions 15 | . 15 . . Melee . | . . . . Knockbacks . | . . . . Impact . | . . . . Kinetic . | . . . . Secondary . | . . . . Self-Inflicted Damage 39 | . 8 31 . Shots 2 | . 1 1 . Rammed . | . . . . Targets Rammed . | . . . . Kicked . | . . . . Crushed . | . . . . Highest Temperature 134 | . 27 134 . Average Temperature 41 | . 9 50 . Received Heat Transfer 246 | . 186 . 60 Siege Activations . | . . . . Robots Corrupted . | . . . . Combat Hostiles . | . . . . Parts Fried . | . . . . Impact Corruptions . | . . . . Robots Melted . | . . . . Combat Hostiles . | . . . . Parts Melted . | . . . . Heat Transferred 1369 | . 1110 259 . Parts Sabotaged . | . . . . Parts Stolen . | . . . . Parts Stripped . | . . . . Power Chain Reactions . | . . . . Alert | -11 -10 -10 -10 ------- Run | Yrd Mat Min Sub Peak Influence 391 | . 391 222 . Initial 114 | . . 114 . Average 201 | . 218 169 . Maximum Alert Level 1 | . 1 1 . Low Security (%) 45 | 100 36 67 . Level 1 54 | . 63 32 . Level 2 . | . . . . Level 3 . | . . . . Level 4 . | . . . . Level 5 . | . . . . High Security . | . . . . Max Security . | . . . . Squads Dispatched 4 | . 4 . . Investigation 3 | . 3 . . Extermination . | . . . . Reinforcement 1 | . 1 . . Assault . | . . . . Garrison . | . . . . Intercept . | . . . . Searches Triggered . | . . . . Construction Impeded . | . . . . Haulers Reinforced . | . . . . Active Scanning Responses . | . . . . Cargo Convoy Interrupts . | . . . . Stealth | -11 -10 -10 -10 --------- Run | Yrd Mat Min Sub Distress Signals 4 | . 4 . . Communications Jammed . | . . . . Distress Signals . | . . . . Times Spotted 36 | . 21 13 2 Peak Tracking Total 6 | . 6 4 2 Tactical Retreats 4 | . 2 2 . Traps | -11 -10 -10 -10 ------- Run | Yrd Mat Min Sub Traps Triggered 1 | . 1 . . Indirectly . | . . . . Trap Hack Attempts . | . . . . Triggered . | . . . . Disarmed . | . . . . Reprogrammed . | . . . . Reused . | . . . . Traps Extracted . | . . . . Installed . | . . . . Triggered . | . . . . Machines | -11 -10 -10 -10 ---------- Run | Yrd Mat Min Sub Machines Disabled 1 | . 1 . . Max in Single Turn 1 | . 1 . . Machines Repaired . | . . . . Machines Dismantled . | . . . . Machines Sabotaged . | . . . . Overloaded Fab Kills . | . . . . Hacking | -11 -10 -10 -10 --------- Run | Yrd Mat Min Sub Machines Accessed 9 | . 9 . . Terminals 7 | . 7 . . Fabricators . | . . . . Repair Stations . | . . . . Recycling Units 2 | . 2 . . Scanalyzers . | . . . . Garrison Access . | . . . . Total Hacks 29 | . 29 . . Successful 16 | . 16 . . Failed 12 | . 12 . . Catastrophic 2 | . 2 . . Database Lockouts 1 | . 1 . . Manual 14 | . 14 . . Terminals 24 | . 24 . . Fabricators . | . . . . Repair Stations . | . . . . Recycling Units 5 | . 5 . . Scanalyzers . | . . . . Garrison Access . | . . . . Terminal Hacks 10 | . 10 . . Part Schematic 1 | . 1 . . Robot Schematic 1 | . 1 . . Robot Analysis 1 | . 1 . . Prototype ID Bank 2 | . 2 . . Branch Access Points 1 | . 1 . . Transport Status 1 | . 1 . . Hauler Manifests 1 | . 1 . . Zone Layout 2 | . 2 . . Fabricator Hacks . | . . . . Repair Station Hacks . | . . . . Recycling Unit Hacks 2 | . 2 . . Report Inventory 2 | . 2 . . Scanalyzer . | . . . . Garrison Access Hacks . | . . . . Unauthorized Hacks 4 | . 4 . . Terminals 2 | . 2 . . Track 1 | . 1 . . Botnet 1 | . 1 . . Fabricators . | . . . . Repair Stations . | . . . . Recycling Units 2 | . 2 . . Tunnel 2 | . 2 . . Scanalyzers . | . . . . Garrison Access . | . . . . Data Cores Recovered . | . . . . Used . | . . . . Hacking Detections 6 | . 6 . . Full Trace Events 2 | . 2 . . Feedback Events . | . . . . Feedback Blocked . | . . . . Robot Schematics Acquired 1 | . 1 . . Robots Built . | . . . . Authchips . | . . . . Time . | . . . . Total Robot Build Rating . | . . . . Part Schematics Acquired 1 | . 1 . . Parts Built . | . . . . Authchips . | . . . . Time . | . . . . Total Part Build Rating . | . . . . Parts Repaired . | . . . . Time . | . . . . Parts Recycled . | . . . . Recycled Matter . | . . . . Retrieved Matter . | . . . . Retrieved Components . | . . . . Parts Scanalyzed . | . . . . Part Schematics Acquired . | . . . . Parts Damaged . | . . . . Bothacking | -11 -10 -10 -10 ------------ Run | Yrd Mat Min Sub Used RIF Installer . | . . . . Robots Hacked . | . . . . Non-combat . | . . . . Combat . | . . . . Robot Hacks Applied . | . . . . Relay Couplers Released . | . . . . Fabnet Peak Effective % . | . . . . Robots Rewired . | . . . . Allies Hacked . | . . . . Hacks Repelled . | . . . . Allies | -11 -10 -10 -10 -------- Run | Yrd Mat Min Sub Total Allies . | . . . . Largest Group . | . . . . Highest-Rated Group . | . . . . Highest-Rated Ally . | . . . . Total Orders . | . . . . Ally Attacks . | . . . . Total Damage . | . . . . Kills . | . . . . Allies Corrupted . | . . . . Allies Melted . | . . . . Intel | -11 -10 -10 -10 ------- Run | Yrd Mat Min Sub Robot Analysis Total 1 | . 1 . . Derelict Logs Recovered . | . . . . Drone Launches . | . . . . Drone Recoveries . | . . . . Exploration | -11 -10 -10 -10 ------------- Run | Yrd Mat Min Sub Turns Passed 2008 | 60 1498 419 31 Spaces Moved 786 | 44 654 84 4 Core 5 | 5 . . . Treads . | . . . . Legs 781 | 39 654 84 4 Wheels . | . . . . Hover . | . . . . Flight . | . . . . Fastest Speed 50 | 50 120 190 260 Average Speed 181 | 112 182 204 260 Slowest Speed 260 | 120 190 260 260 Overloaded Moves . | . . . . Propulsion Burnouts . | . . . . Robots Hopped . | . . . . Cave-ins Triggered . | . . . . Exploration Rate (%) 29 | 4 92 20 1 Regions Visited 3 Branch Regions 2 Pre-discovered Areas 2 | . 2 . . Known Exits Taken 1 | . 1 . . Unknown Exits Taken 2 | 1 . 1 . Scrap Searched . | . . . . Spaces Dug 29 | . 8 21 . Terrain Destroyed 59 | . 38 21 . Melee . | . . . . Projectile . | . . . . AOE 59 | . 38 21 . Terrain Rammed . | . . . . Walls Destroyed . | . . . . Machines Disabled . | . . . . Actions | -11 -10 -10 -10 --------- Run | Yrd Mat Min Sub Total 1203 | 51 853 280 19 Wait 260 | . 96 157 7 Move 783 | 43 653 83 4 Hop . | . . . . Pick Up 19 | 2 17 . . Fast Attach 12 | 6 5 1 . Attach 11 | . 1 8 2 Detach . | . . . . Swap 12 | . 10 2 . Drop 13 | . 13 . . Fire 93 | . 58 29 6 Melee . | . . . . Ram . | . . . . Kick . | . . . . Crush . | . . . . Escape Stasis . | . . . . Rewire . | . . . . Trap . | . . . . Miscellaneous . | . . . . Route ------- -11/Scrapyard -10/Materials (discovered 5 exits: [*Mat x3] / *Min x2) -10/Mines (discovered 2 exits: [*Mat] / [*Sub]) -10/Subcaves History --------- Turn | Location | Event 36 | -11/Scrapyard | Discovered new exit (range 16) 61 | -11/Scrapyard | Entered Materials 61 | -10/Materials | Discovered new exit (range 14) 154 | -10/Materials | Discovered new exit (range 16) 310 | -10/Materials | Build established: Mutant 343 | -10/Materials | Discovered new exit (range 9) 495 | -10/Materials | Discovered new exit (range 5) 625 | -10/Materials | Central database locked down 625 | -10/Materials | Identified exit to Mines 878 | -10/Materials | Discovered new exit (range 9) 1559 | -10/Materials | Entered Mines 1577 | -10/Mines | Discovered new exit (range 13) 1687 | -10/Mines | Assembled infested the area 1727 | -10/Mines | Core integrity fell below 50% 1765 | -10/Mines | Lost 8 parts (2p3n3w) 1799 | -10/Mines | Core integrity fell below 20% 1960 | -10/Mines | Discovered new exit (range 5) 1978 | -10/Mines | Entered Subcaves 2009 | -10/Subcaves | Destroyed by G-47 Trooper with Particle Gun Last Messages --------------- 01828_ U-05 Engineer lays Concrete. 01834_ R-06 Scavenger collects Lgt. Ion Engine. 01837_ R-06 Scavenger collects Terrain Scan Processor. 01855_ T-07 Excavator is excavating. 01875_ K-01 Serf collects debris. 01899_ U-05 Engineer lays Concrete. 01902_ U-05 Engineer builds a Wall. 01906_ T-07 Excavator is excavating. 01912_ U-05 Engineer lays Concrete. 01913_ U-05 Engineer builds a Wall. 01921_ U-05 Engineer lays Concrete. 01960_ T-07 Excavator is excavating. 01960_ EXIT=FOUND LOCATION=UNKNOWN AMBIENT_HEAT=-10 GOAL=ESCAPE 01997_ EM Pulse Gun destroyed. 02004_ Core Shielding destroyed. 02007_ Lgt. Ion Engine destroyed. Map ----- +----------------------------------------------------+ | ?????????????????????????????????????????????????? | | ?????????????????????????????????????????????????? | | ?????????????????????????????????????????????????? | | ?????????????????????????????????????????????????? | | ?????????????????????????????????????????????????? | | ?????????????????????????????????????????????????? | | ?????????????????????????????????????????????????? | | ?????????????????????????????????????????????????? | | ?????????????????????????????????????????????????? | | ?????????????????????????????????????????????????? | | ?????????????????????????????????????????????????? | | ?????????????????????????????????????????????????? | | ?????????????????????????????????????????????????? | | ????????????????????????????????? ???????????????? | | ???????????????????????????????? #?????????????? | | ???????????????????????????????? ????????????? | | ??????????????????????????????? ?????????????? | | ??????????????????????????????? ??????????????? | | ?????????????????????????????? ???????????????? | | ?????????????????????????????? ????????????????? | | ????????????????????????????? ?????????????????? | | ????????????????????????????? ??????????????????? | | ?????????????????????#####?? #??????????????????? | | ????????????????????######## #??????????????????? | | ????????????????????### ## ##?????????????????? | | ????????????????????## @# #?????????????????? | | ????????????????????### #??????????????????? | | ????????????????????#### gg #????????????????? | | ?????????????????????#### ##???????????????? | | ??????????????????????### ##???????????????? | | ???????????????????????###########???????????????? | | ???????????????????????###########???????????????? | | ?????????????????????????????????????????????????? | | ?????????????????????????????????????????????????? | | ?????????????????????????????????????????????????? | | ?????????????????????????????????????????????????? | | ?????????????????????????????????????????????????? | | ?????????????????????????????????????????????????? | | ?????????????????????????????????????????????????? | | ?????????????????????????????????????????????????? | | ?????????????????????????????????????????????????? | | ?????????????????????????????????????????????????? | | ?????????????????????????????????????????????????? | | ?????????????????????????????????????????????????? | | ?????????????????????????????????????????????????? | | ?????????????????????????????????????????????????? | | | | | | | | | +----------------------------------------------------+ Best States ------------- Heat Dissipation 35 Energy Generation 10 Energy Capacity 250 Matter Stores 300 Matter Capacity 300 Sight Range 16 Terrain Scan Density 10 Core Shielding 20 Evasion (%) 55 Item Schematics ----------------- Hcp. Storage Unit | -10/Materials | Hacked Robot Schematics ------------------ M-13 Machinist | -10/Materials | Hacked Fabricated ------------ Nothing Alien Tech Used ----------------- None Achievements -------------- None Challenges ------------ None Game ------ Seed CoolingLightTorch Manual? 0 Play Time 00:14:04 Cumulative 451.6 hours Start 2024.06.29 @ 23:45:23 End 2024.06.30 @ 00:20:36 Sessions 1 Manual Loads 0 Difficulty Rogue Special Mode None Game No. 171 Rogue 168 Adventurer 3 Explorer 0 Win Type - Total 7 Types 4/1/0/1/0/1/0/0/0 Lore% 82 Gallery% 87 Achievement% 86 Wizard Run 0 Options --------- Layout 2 ASCII 0 Keyboard 0 Movement Numpad Keybinds 0 Fullscreen 2 Font 24/Smallcaps Map View 50x44 Zoom Use 0% Tactical HUD 1 Map Filters NONE Filters NONE Steam 1 RUN: 71945147-df39-4487-95be-7dca30c673c9